bitfinex/quotes_BTCUSD_20220226
["timestamp","ask_amount","ask_price","bid_price","bid_amount"]
[1645879082198,0.00029381,38916.0,38913.0,0.302]
[1645879082397,0.00029381,38916.0,38913.0,0.002]
[1645879083238,0.32464862,38921.0,38912.0,0.17914165]
[1645879083437,0.00027038,38916.0,38912.0,0.17914165]
[1645879084134,0.00027038,38916.0,38913.0,0.3]
[1645879084337,0.27060089,38919.0,38913.0,0.3]
[1645879084535,0.11687635,38924.0,38913.0,0.3]
[1645879084536,0.26560089,38920.0,38913.0,0.3]
[1645879084736,0.00027038,38916.0,38913.0,0.3]
[1645879084939,0.00027038,38916.0,38912.0,0.17914165]
[1645879085237,0.00027038,38916.0,38909.0,0.35]
[1645879085439,0.00027038,38916.0,38907.0,0.193]
[1645879085636,0.4767028,38920.0,38907.0,0.193]
[1645879085637,0.4767028,38920.0,38907.0,0.493]
[1645879085836,0.00027038,38914.0,38907.0,0.493]
[1645879086037,0.00027038,38914.0,38907.0,0.193]
[1645879086241,0.00027038,38914.0,38907.0,0.493]
[1645879086838,0.4767028,38920.0,38907.0,0.493]
[1645879087104,0.00027196,38912.0,38907.0,0.493]
[1645879087307,0.00027196,38912.0,38906.0,0.4132]
[1645879087906,0.00108768,38918.0,38906.0,0.4132]
[1645879088106,0.35031862,38919.0,38906.0,0.4152]
[1645879088307,0.00027197,38911.0,38906.0,0.1152]
[1645879088706,0.00027197,38911.0,38906.0,0.4152]
[1645879089209,0.16129421,38913.0,38906.0,0.4152]
[1645879089408,0.00027197,38910.0,38906.0,0.4132]
[1645879089606,0.00027197,38910.0,38906.0,0.1132]
[1645879090006,0.00027197,38910.0,38906.0,0.1152]
[1645879090408,0.16129421,38913.0,38906.0,0.1152]
[1645879090738,0.00027186,38910.0,38906.0,0.1152]
[1645879091139,0.16129421,38913.0,38911.0,0.00054371]
[1645879092139,0.001,38918.0,38911.0,0.00154371]
[1645879092939,0.001,38918.0,38911.0,0.00109241]
[1645879093540,0.33491862,38919.0,38912.0,0.163426]
[1645879093942,0.32464862,38919.0,38912.0,0.163426]
[1645879094245,0.00017391,38917.0,38912.0,0.164426]
[1645879095294,0.32464862,38919.0,38912.0,0.163426]
[1645879095497,0.00029381,38916.0,38912.0,0.163426]
[1645879095897,0.00029381,38916.0,38911.0,9.241e-05]
[1645879096094,0.00029381,38916.0,38912.0,0.001]
[1645879096495,0.32464862,38919.0,38912.0,0.001]
[1645879096695,0.00029381,38916.0,38912.0,0.001]
[1645879097295,0.00029381,38916.0,38911.0,9.241e-05]
[1645879097796,0.00029381,38915.0,38911.0,9.241e-05]
[1645879098246,0.00029381,38915.0,38911.0,0.00109241]
[1645879098745,0.32464862,38919.0,38911.0,0.00109241]
[1645879098946,0.32564862,38921.0,38911.0,0.00109241]
[1645879099146,0.00029381,38915.0,38911.0,0.00109241]
[1645879099346,0.00029381,38915.0,38911.0,9.241e-05]
[1645879099947,0.33490862,38922.0,38911.0,9.241e-05]
[1645879100149,0.32464862,38922.0,38916.0,0.15104481]
[1645879100349,0.00117508,38921.0,38916.0,0.15104481]
[1645879100753,0.00117508,38921.0,38917.0,0.3]
[1645879101150,0.32464862,38926.0,38917.0,0.3]
[1645879101351,0.32464862,38927.0,38917.0,0.3]
[1645879101549,0.32464862,38927.0,38924.0,0.15172425]
[1645879101750,0.001175,38927.0,38924.0,0.15172425]
[1645879102195,0.001175,38927.0,38924.0,0.15272425]
[1645879102390,1.33124862,38928.0,38924.0,0.15272425]
[1645879102989,1.33124862,38928.0,38924.0,0.001]
[1645879103390,1.33124862,38928.0,38918.0,0.1202]
[1645879103592,1.33124862,38928.0,38918.0,0.4202]
[1645879103791,1.33124862,38928.0,38918.0,0.1202]
[1645879104092,1.33124862,38928.0,38918.0,0.1222]
[1645879104093,0.000295,38925.0,38918.0,0.1222]
[1645879104293,0.000295,38925.0,38918.0,0.4222]
[1645879104795,1.33124862,38928.0,38918.0,0.4222]
[1645879105192,0.000295,38923.0,38918.0,0.4222]
[1645879105393,0.000295,38923.0,38918.0,0.4202]
[1645879106143,1.33124862,38928.0,38918.0,0.4222]
[1645879106339,0.00028364,38922.0,38918.0,0.4222]
[1645879107343,1.33124862,38928.0,38918.0,0.4222]
[1645879107539,0.00028364,38922.0,38918.0,0.4222]
[1645879107740,0.00028364,38922.0,38918.0,0.4202]
[1645879108138,0.00028364,38922.0,38918.0,0.4222]
[1645879108540,1.33124862,38928.0,38918.0,0.1222]
[1645879108740,0.00016365,38922.0,38918.0,0.4222]
[1645879108941,0.00016365,38922.0,38918.0,0.1222]
[1645879109141,0.00016365,38922.0,38918.0,0.4222]
[1645879109340,0.00016365,38922.0,38918.0,0.4202]
[1645879109894,1.33124862,38928.0,38918.0,0.4202]
[1645879110093,0.00017502,38922.0,38918.0,0.4222]
[1645879110892,0.32564862,38929.0,38918.0,0.4222]
[1645879111092,0.00069998,38928.0,38925.0,0.1387471]
[1645879111292,0.00069998,38928.0,38925.0,0.11655969]
[1645879112093,0.001,38929.0,38925.0,0.11655969]
[1645879112292,0.00029604,38928.0,38925.0,0.11655969]
[1645879112893,0.00029604,38928.0,38921.0,0.3]
[1645879113341,0.00029604,38928.0,38918.0,0.1202]
[1645879113342,0.001,38929.0,38919.0,0.3]
[1645879113543,0.00029604,38926.0,38919.0,0.3]
[1645879113945,0.00029604,38926.0,38925.0,0.13152181]
[1645879114143,0.00029604,38926.0,38925.0,0.43152181]
[1645879114543,0.001,38929.0,38925.0,0.43152181]
[1645879114743,0.00029604,38927.0,38925.0,0.43152181]
[1645879114944,0.00029604,38927.0,38926.0,0.3]
[1645879115743,0.001,38929.0,38926.0,0.3]
[1645879116144,0.00029604,38928.0,38926.0,0.3]
[1645879116989,0.001,38929.0,38926.0,0.3]
[1645879117193,0.00127452,38929.0,38926.0,0.3]
[1645879117792,0.00127452,38929.0,38926.0,0.301]
[1645879118291,0.00127452,38929.0,38926.0,0.32667]
[1645879118791,0.00127452,38929.0,38926.0,0.42667]
[1645879119090,0.00127452,38929.0,38926.0,0.42567]
[1645879119291,0.001,38929.0,38926.0,0.42567]
[1645879119492,0.00127452,38929.0,38926.0,0.42567]
[1645879120492,0.001,38929.0,38926.0,0.42567]
[1645879120739,0.00125327,38929.0,38926.0,0.42567]
[1645879121137,0.001,38931.0,38930.0,0.16616212]
[1645879121339,0.001,38931.0,38930.0,0.46616212]
[1645879121741,0.001,38931.0,38930.0,0.16616212]
[1645879122943,0.001,38931.0,38930.0,0.16816212]
[1645879123140,0.001,38931.0,38930.0,0.46816212]
[1645879124143,0.001,38931.0,38930.0,0.46616212]
[1645879124803,0.001,38937.0,38931.0,1.15]
[1645879125107,0.001,38937.0,38934.0,0.1]
[1645879125303,0.001,38937.0,38935.0,0.3514]
[1645879125507,0.001,38937.0,38936.0,0.32567]
[1645879125702,0.001,38937.0,38936.0,0.47707]
[1645879125902,0.001,38937.0,38936.0,0.65663433]
[1645879126703,0.001,38937.0,38936.0,0.33096433]
[1645879127201,0.001,38937.0,38936.0,0.63096433]
[1645879129547,0.001,38937.0,38936.0,0.0514]
[1645879129946,0.001,38937.0,38932.0,0.1204]
[1645879130556,0.001,38937.0,38931.0,0.3]
[1645879130947,0.001,38937.0,38932.0,0.004]
[1645879131747,0.00029666,38936.0,38932.0,0.004]
[1645879132193,0.00029666,38936.0,38930.0,0.16616212]
[1645879132692,0.001,38937.0,38930.0,0.16616212]
[1645879132992,0.00029667,38935.0,38930.0,0.16616212]
[1645879133392,0.00029667,38935.0,38930.0,0.21571152]
[1645879133596,0.00029667,38935.0,38930.0,0.56571152]
[1645879133794,0.001,38937.0,38930.0,0.56571152]
[1645879134195,0.00029667,38934.0,38930.0,0.56571152]
[1645879134995,0.001,38937.0,38930.0,0.56971152]
[1645879135396,0.00029667,38934.0,38930.0,0.56971152]
[1645879135841,0.00029667,38934.0,38930.0,0.57997152]
[1645879136239,0.001,38937.0,38930.0,0.57597152]
[1645879136438,0.00029667,38934.0,38930.0,0.57597152]
[1645879137040,0.00029667,38934.0,38931.0,0.2569146]
[1645879137240,0.00029667,38934.0,38932.0,0.3]
[1645879137440,0.001,38937.0,38932.0,0.3]
[1645879137740,0.00029667,38934.0,38933.0,0.16395007]
[1645879137940,0.00029667,38934.0,38933.0,0.47421007]
[1645879138141,0.00029667,38934.0,38933.0,0.56410668]
[1645879138540,0.001,38937.0,38934.0,0.02567]
[1645879138740,0.001,38937.0,38936.0,0.064221]
[1645879138940,0.001,38937.0,38936.0,0.364221]
[1645879139139,0.001,38937.0,38936.0,0.414221]
[1645879140400,0.001,38937.0,38936.0,0.424481]
[1645879141004,0.001,38937.0,38936.0,0.427481]
[1645879141500,0.001,38937.0,38936.0,0.36326]
[1645879141699,0.001,38937.0,38936.0,0.41466]
[1645879141898,0.001,38937.0,38936.0,0.478878]
[1645879142298,0.001,38937.0,38936.0,0.501548]
[1645879142599,0.001,38937.0,38936.0,0.475878]
[1645879143000,0.001,38937.0,38936.0,0.41366]
[1645879143449,0.001,38937.0,38936.0,0.11366]
[1645879143652,0.001,38937.0,38936.0,0.06366]
[1645879144250,0.001,38937.0,38936.0,0.36166]
[1645879145051,0.001,38937.0,38936.0,0.36466]
[1645879145251,0.001,38937.0,38936.0,0.3544]
[1645879145752,0.001,38937.0,38936.0,0.0544]
[1645879146052,0.001,38937.0,38936.0,0.3544]
[1645879146257,0.001,38937.0,38936.0,0.418617]
[1645879146853,0.001,38937.0,38936.0,0.415617]
[1645879147092,0.001,38937.0,38936.0,0.3514]
[1645879147797,0.001,38937.0,38934.0,0.2128402]
[1645879147798,0.001,38937.0,38932.0,0.2128402]
[1645879147993,0.001,38937.0,38931.0,0.003]
[1645879148192,0.001,38937.0,38930.0,0.16616212]
[1645879148592,0.0002756,38936.0,38930.0,0.16616212]
[1645879148795,0.1664069,38936.0,38930.0,0.16616212]
[1645879149191,0.1664069,38936.0,38930.0,0.26616212]
[1645879149392,0.1661313,38936.0,38930.0,0.26616212]
[1645879149794,0.00027561,38935.0,38930.0,0.26616212]
[1645879149996,0.00027561,38935.0,38930.0,0.16616212]
[1645879150197,0.02594561,38935.0,38930.0,0.16616212]
[1645879150396,0.00027561,38935.0,38930.0,0.16616212]
[1645879150594,0.02567,38935.0,38930.0,0.16616212]
[1645879151047,0.00027568,38934.0,38930.0,0.16816212]
[1645879151842,0.02567,38935.0,38930.0,0.16816212]
[1645879152043,0.00027568,38934.0,38930.0,0.16816212]
[1645879152243,0.00027568,38934.0,38930.0,0.16616212]
[1645879153050,0.001,38937.0,38931.0,0.08]
[1645879153247,0.001,38937.0,38931.0,0.38]
[1645879153447,0.00027568,38934.0,38932.0,0.08]
[1645879153646,0.00027568,38934.0,38933.0,0.4314]
[1645879153846,0.00027568,38934.0,38933.0,0.1814]
[1645879154050,0.00027568,38934.0,38933.0,0.3855148]
[1645879154248,0.001,38937.0,38933.0,0.3957748]
[1645879154496,0.001,38937.0,38933.0,0.24166]
[1645879154497,0.0001529,38935.0,38933.0,0.24166]
[1645879155195,0.0001529,38935.0,38933.0,0.24366]
[1645879155395,0.001,38937.0,38933.0,0.24366]
[1645879155596,0.001,38937.0,38935.0,0.08]
[1645879155796,0.0001529,38936.0,38935.0,0.18]
[1645879155996,0.0001529,38936.0,38935.0,0.2314]
[1645879156398,0.0001529,38936.0,38935.0,0.23132211]
[1645879156601,0.001,38937.0,38935.0,0.23132211]
[1645879156998,0.0011529,38937.0,38935.0,0.23332211]
[1645879157799,0.001,38937.0,38935.0,0.23332211]
[1645879158241,0.00058152,38937.0,38935.0,0.23132211]
[1645879158845,0.00058152,38937.0,38936.0,0.38]
[1645879159044,0.00058152,38937.0,38936.0,0.1314]
[1645879162600,0.00058152,38937.0,38936.0,0.4314]
[1645879162803,0.00058152,38937.0,38936.0,0.1314]
[1645879164202,0.00058152,38937.0,38936.0,0.4314]
[1645879164406,0.00058152,38937.0,38936.0,0.1314]
[1645879164804,0.00058152,38937.0,38936.0,0.4314]
[1645879166544,0.00058152,38937.0,38936.0,0.1314]
[1645879167147,0.00058152,38937.0,38936.0,0.08]
[1645879167747,0.21708175,38937.0,38936.0,0.08]
[1645879167947,0.00058152,38937.0,38936.0,0.08]
[1645879168547,0.21708175,38937.0,38936.0,0.08]
[1645879168751,0.21708175,38937.0,38936.0,0.002]
[1645879168948,0.21708175,38937.0,38936.0,0.00100076]
[1645879168949,0.57106479,38937.0,38936.0,0.00100076]
[1645879169598,0.30058152,38937.0,38936.0,0.00100076]
[1645879169796,0.00058152,38937.0,38936.0,0.00100076]
[1645879169995,0.00058152,38937.0,38931.0,0.08]
[1645879170194,0.21663795,38934.0,38931.0,0.08]
[1645879171007,0.21663795,38932.0,38931.0,0.08]
[1645879171202,0.3,38932.0,38931.0,0.08]
[1645879171400,0.27079744,38932.0,38931.0,0.08]
[1645879171598,0.32219744,38933.0,38931.0,0.08]
[1645879172001,0.15702544,38932.0,38931.0,0.08]
[1645879172203,0.42782288,38932.0,38931.0,0.08]
[1645879172398,0.42772545,38932.0,38931.0,0.08]
[1645879172799,0.15692801,38932.0,38931.0,0.08]
[1645879172999,0.27079744,38933.0,38931.0,0.081]
[1645879173247,0.00015047,38934.0,38931.0,0.081]
[1645879173542,0.35059709,38935.0,38931.0,0.081]
[1645879173743,0.27077257,38933.0,38931.0,0.081]
[1645879174144,0.15080219,38932.0,38931.0,0.08]
[1645879175044,0.2710471,38933.0,38931.0,0.081]
[1645879175446,0.2166791,38932.0,38931.0,0.081]
[1645879175646,0.00027453,38933.0,38931.0,0.081]
[1645879175647,0.21695363,38933.0,38931.0,0.081]
[1645879175847,0.2166791,38934.0,38931.0,0.081]
[1645879176247,0.00027453,38933.0,38931.0,0.08]
[1645879177087,0.2166791,38934.0,38931.0,0.08]
[1645879177493,0.2169552,38934.0,38931.0,0.08]
[1645879178487,0.2166791,38934.0,38931.0,0.08]
[1645879178688,0.2169552,38934.0,38931.0,0.08]
[1645879178887,0.2169552,38934.0,38931.0,0.081]
[1645879179488,0.2166791,38934.0,38931.0,0.081]
[1645879179888,0.2169552,38934.0,38931.0,0.081]
[1645879180288,0.2169552,38934.0,38931.0,0.08]
[1645879180745,0.2166791,38934.0,38931.0,0.08]
[1645879180946,0.21695509,38934.0,38931.0,0.081]
[1645879181144,0.21695509,38934.0,38930.0,0.16616212]
[1645879181946,0.2166791,38934.0,38930.0,0.16616212]
[1645879182148,0.21683104,38934.0,38930.0,0.16616212]
[1645879182948,0.21683104,38934.0,38930.0,0.16716212]
[1645879183146,0.2166791,38934.0,38930.0,0.16716212]
[1645879183347,0.21683104,38934.0,38930.0,0.16716212]
[1645879184347,0.2166791,38934.0,38930.0,0.16616212]
[1645879184589,0.21684279,38934.0,38930.0,0.16616212]
[1645879184989,0.21684279,38934.0,38930.0,0.16716212]
[1645879185394,0.2166791,38933.0,38930.0,0.16716212]
[1645879186191,0.2166791,38933.0,38930.0,0.16616212]
[1645879186991,0.2169666,38933.0,38930.0,0.16716212]
[1645879187897,0.2166791,38933.0,38930.0,0.16716212]
[1645879188093,0.21697681,38933.0,38930.0,0.16716212]
[1645879188345,0.21697681,38933.0,38930.0,0.16616212]
[1645879189042,0.2166791,38933.0,38930.0,0.16616212]
[1645879189244,0.21697681,38933.0,38930.0,0.16616212]
[1645879190243,0.2166791,38933.0,38930.0,0.16616212]
[1645879190643,0.21697681,38933.0,38930.0,0.16616212]
[1645879190846,0.21697681,38933.0,38930.0,0.17258098]
[1645879191245,0.00029771,38933.0,38930.0,0.17258098]
[1645879191445,0.15043863,38936.0,38930.0,0.17258098]
[1645879191845,0.00029771,38933.0,38930.0,0.17258098]
[1645879192692,0.15043863,38936.0,38930.0,0.17258098]
[1645879192893,0.00029771,38933.0,38930.0,0.17258098]
[1645879193097,0.00029771,38933.0,38930.0,0.17458098]
[1645879193794,0.15043863,38936.0,38930.0,0.17458098]
[1645879194195,0.00029771,38933.0,38930.0,0.17458098]
[1645879194998,0.15043863,38936.0,38930.0,0.17458098]
[1645879195198,0.00029771,38933.0,38930.0,0.17458098]
[1645879196343,0.15043863,38936.0,38930.0,0.17247428]
[1645879196543,0.00029771,38933.0,38930.0,0.17247428]
[1645879197449,0.15043863,38936.0,38930.0,0.17247428]
[1645879197846,0.00029771,38933.0,38930.0,0.17247428]
[1645879198443,0.00029771,38933.0,38931.0,0.3]
[1645879198645,0.00058152,38937.0,38931.0,0.35]
[1645879198845,0.00058152,38937.0,38932.0,0.06166]
[1645879199045,0.00058152,38937.0,38932.0,0.11166]
[1645879199046,0.00029771,38933.0,38932.0,0.11166]
[1645879199245,0.00029771,38933.0,38932.0,0.41166]
[1645879199495,0.00029771,38933.0,38932.0,0.57756348]
[1645879199995,0.001,38940.0,38932.0,0.57756348]
[1645879199996,0.00038152,38940.0,38938.0,0.16259489]
[1645879200197,0.00107705,38940.0,38938.0,0.21399489]
[1645879200496,0.00107705,38940.0,38939.0,0.05]
[1645879201095,0.00038152,38940.0,38939.0,0.05]
[1645879201296,0.00038152,38940.0,38939.0,0.1014]
[1645879201795,0.00038152,38940.0,38939.0,0.4014]
[1645879202694,0.00038152,38940.0,38939.0,0.1014]
[1645879202894,0.00038152,38940.0,38939.0,0.4014]
[1645879203094,0.00038152,38940.0,38939.0,0.4024]
[1645879203745,0.00038152,38940.0,38939.0,0.1024]
[1645879203944,0.00038152,38940.0,38939.0,0.4024]
[1645879204146,0.00038152,38940.0,38939.0,0.1024]
[1645879204647,0.00038152,38940.0,38939.0,0.1014]
[1645879205053,0.00038152,38940.0,38939.0,0.001]
[1645879205248,0.21705145,38940.0,38939.0,0.001]
[1645879205450,3.47e-05,38938.0,38933.0,0.1218]
[1645879205647,0.21666542,38937.0,38932.0,0.00631216]
[1645879205848,0.39519224,38937.0,38932.0,0.00631216]
[1645879206248,0.39547513,38937.0,38932.0,0.00631216]
[1645879206846,0.39408932,38937.0,38932.0,0.00631216]
[1645879207093,0.39380643,38937.0,38932.0,0.00631216]
[1645879207294,0.00027638,38936.0,38932.0,0.00631216]
[1645879208299,0.3,38936.0,38932.0,0.00631216]
[1645879208699,0.30027638,38936.0,38932.0,0.00631216]
[1645879209096,0.57111379,38936.0,38932.0,0.00631216]
[1645879209496,0.57083741,38936.0,38932.0,0.00631216]
[1645879209697,0.57111379,38936.0,38932.0,0.00631216]
[1645879210496,0.27111379,38936.0,38932.0,0.00631216]
[1645879210749,0.27083741,38936.0,38932.0,0.00631216]
[1645879210950,0.27111423,38936.0,38932.0,0.00631216]
[1645879211149,0.3,38935.0,38930.0,0.16616212]
[1645879211457,0.27111423,38936.0,38930.0,0.16616212]
[1645879211850,0.27083741,38936.0,38930.0,0.16616212]
[1645879212050,0.00027683,38935.0,38930.0,0.16616212]
[1645879213054,0.27083741,38936.0,38930.0,0.16716212]
[1645879213354,0.00027683,38934.0,38930.0,0.16716212]
[1645879213553,0.13565393,38931.0,38930.0,0.16716212]
[1645879214154,0.00027683,38934.0,38930.0,0.16716212]
[1645879214354,0.27083741,38935.0,38930.0,0.16616212]
[1645879214599,0.00027681,38932.0,38930.0,0.16616212]
[1645879214995,0.00027681,38932.0,38930.0,0.16816212]
[1645879215394,0.13043353,38933.0,38930.0,0.16816212]
[1645879215795,0.13071033,38933.0,38930.0,0.16816212]
[1645879216394,0.13071033,38933.0,38930.0,0.16616212]
[1645879216598,0.13043353,38933.0,38930.0,0.16616212]
[1645879216797,0.34708184,38933.0,38930.0,0.16616212]
[1645879216998,0.34735864,38933.0,38930.0,0.16616212]
[1645879217297,0.21664831,38932.0,38930.0,0.16616212]
[1645879218246,0.21623002,38932.0,38930.0,0.16616212]
[1645879220246,0.00125637,38933.0,38930.0,0.16616212]
[1645879220646,0.00155513,38933.0,38930.0,0.16616212]
[1645879221445,0.00125637,38933.0,38930.0,0.16616212]
[1645879221646,0.00155513,38933.0,38930.0,0.16616212]
[1645879222692,0.00125637,38933.0,38930.0,0.16616212]
[1645879222890,0.00125637,38933.0,38932.0,0.14511348]
[1645879223092,0.00155513,38933.0,38932.0,0.14511348]
[1645879223893,0.00125637,38933.0,38932.0,0.14511348]
[1645879225294,0.00125637,38933.0,38932.0,0.19651348]
[1645879227156,0.00125637,38933.0,38932.0,0.19751348]
[1645879228353,0.00125637,38933.0,38932.0,0.19651348]
[1645879228954,0.00125637,38933.0,38932.0,0.0514]
[1645879230597,0.00091165,38933.0,38932.0,0.0514]
[1645879231903,0.00029876,38934.0,38932.0,0.475249]
[1645879231904,5.041e-05,38934.0,38932.0,0.475249]
[1645879232101,5.041e-05,38934.0,38933.0,0.54257817]
[1645879232298,3.47e-05,38938.0,38933.0,0.54257817]
[1645879232299,3.47e-05,38938.0,38933.0,0.31946817]
[1645879232505,3.47e-05,38938.0,38934.0,0.1]
[1645879232700,3.47e-05,38938.0,38935.0,0.42707]
[1645879232900,3.47e-05,38938.0,38935.0,1.32722491]
[1645879234643,3.47e-05,38938.0,38935.0,1.1719]
[1645879235744,3.47e-05,38938.0,38935.0,1.19757]
[1645879236243,0.00033345,38938.0,38935.0,1.19757]
[1645879237095,3.47e-05,38938.0,38935.0,1.19757]
[1645879237296,0.00033345,38938.0,38935.0,1.19757]
[1645879238097,0.00033345,38938.0,38937.0,0.02567]
[1645879238300,3.47e-05,38938.0,38937.0,0.37707]
[1645879238500,0.00033345,38938.0,38937.0,0.37707]
[1645879239300,0.00033345,38938.0,38937.0,0.3514]
[1645879239507,3.47e-05,38938.0,38937.0,0.3514]
[1645879241259,3.47e-05,38938.0,38937.0,0.22393701]
[1645879243363,3.47e-05,38938.0,38937.0,0.22593701]
[1645879244598,3.47e-05,38938.0,38937.0,0.22393701]
[1645879245195,3.47e-05,38938.0,38937.0,0.0514]
[1645879245396,3.47e-05,38938.0,38937.0,0.0534]
[1645879246097,3.47e-05,38938.0,38937.0,0.3534]
[1645879246701,3.47e-05,38938.0,38937.0,1.25969]
[1645879246899,3.47e-05,38938.0,38937.0,1.90219]
[1645879247101,3.47e-05,38938.0,38937.0,3.13059185]
[1645879247298,3.47e-05,38938.0,38937.0,2.90088253]
[1645879247499,0.001,38941.0,38940.0,0.154073]
[1645879247500,0.00041472,38941.0,38940.0,0.154073]
[1645879247698,0.00041472,38941.0,38940.0,1.59333271]
[1645879248651,0.00041472,38941.0,38940.0,2.37613271]
[1645879249444,0.00041472,38941.0,38940.0,1.59733271]
[1645879250646,0.00041472,38941.0,38940.0,1.59333271]
[1645879253301,0.00041472,38941.0,38940.0,1.49333271]
[1645879253604,0.00041472,38941.0,38940.0,1.59333271]
[1645879254401,0.00129849,38942.0,38941.0,1.17567]
[1645879254602,0.00129849,38942.0,38941.0,2.29747]
[1645879255203,0.001,38942.0,38941.0,2.29747]
[1645879255605,0.001,38942.0,38941.0,3.08827]
[1645879255855,0.001,38942.0,38941.0,2.369671]
[1645879256455,0.001,38942.0,38941.0,2.344001]
[1645879256858,0.001,38942.0,38941.0,2.361671]
[1645879257057,0.001,38942.0,38941.0,3.144471]
[1645879257458,0.001,38942.0,38941.0,3.149471]
[1645879258558,0.001,38942.0,38941.0,3.15043278]
[1645879258763,0.001,38942.0,38941.0,3.14543278]
[1645879259800,0.001,38942.0,38941.0,2.36263278]
[1645879260296,0.001,38942.0,38941.0,3.27092278]
[1645879260498,0.001,38942.0,38941.0,3.47335708]
[1645879260696,0.001,38942.0,38941.0,4.23882623]
[1645879260897,8.49e-06,38944.0,38941.0,4.12737486]
[1645879261099,8.49e-06,38944.0,38943.0,1.96017669]
[1645879261302,8.49e-06,38944.0,38943.0,1.844943]
[1645879261499,8.49e-06,38944.0,38943.0,2.0728673]
[1645879261705,0.0011,38955.0,38945.0,0.95153125]
[1645879261901,0.32499704,38969.0,38954.0,0.02567]
[1645879262104,0.001,38971.0,38968.0,0.6425]
[1645879262304,0.50254505,38975.0,38968.0,0.6425]
[1645879262305,0.001,38975.0,38969.0,1.8439]
[1645879262697,0.00260511,38976.0,38970.0,1.05]
[1645879262900,0.16816191,38973.0,38971.0,0.0514]
[1645879263100,0.02777,38979.0,38963.0,0.15236744]
[1645879263101,0.02077511,38979.0,38972.0,0.0514]
[1645879263363,0.02077511,38978.0,38973.0,0.0514]
[1645879263568,0.1,38974.0,38973.0,0.0514]
[1645879263764,1.17077511,38973.0,38955.0,0.02549]
[1645879263971,1.17077511,38973.0,38951.0,0.43]
[1645879263972,0.02077511,38970.0,38957.0,0.05]
[1645879264368,0.29480305,38970.0,38957.0,0.05]
[1645879264766,0.29480305,38970.0,38954.0,0.15940133]
[1645879264767,0.16427441,38964.0,38954.0,0.15940133]
[1645879264964,0.29480305,38970.0,38954.0,0.15940133]
[1645879264965,0.00029917,38965.0,38954.0,0.15940133]
[1645879265564,0.00029917,38965.0,38954.0,0.16340133]
[1645879265964,0.32567,38968.0,38954.0,0.004]
[1645879265965,0.13777855,38961.0,38954.0,0.004]
[1645879266165,0.13807773,38961.0,38954.0,0.004]
[1645879266865,0.13807773,38961.0,38953.0,0.06419567]
[1645879267112,0.13777855,38961.0,38953.0,0.21937995]
[1645879267309,0.32567,38968.0,38953.0,0.26937995]
[1645879267508,0.32567,38968.0,38953.0,0.31937995]
[1645879267509,0.00029919,38959.0,38953.0,0.31937995]
[1645879268109,0.00029919,38959.0,38955.0,0.064191]
[1645879268312,0.7199,38965.0,38955.0,0.064191]
[1645879268510,0.13065769,38964.0,38955.0,0.064191]
[1645879268712,0.0002992,38958.0,38955.0,0.064191]
[1645879269613,0.13065769,38964.0,38955.0,0.069191]
[1645879269814,0.00029919,38958.0,38955.0,0.069191]
[1645879270417,0.00029919,38958.0,38955.0,0.005]
[1645879270864,0.02567,38956.0,38947.0,0.20249673]
[1645879271055,0.02567,38956.0,38941.0,0.25042989]
[1645879271056,0.02567,38954.0,38941.0,0.25042989]
[1645879271256,0.02573001,38953.0,38942.0,0.55]
[1645879271456,0.12750404,38950.0,38942.0,0.55]
[1645879271656,0.12750404,38950.0,38947.0,0.003]
[1645879271657,0.3,38949.0,38947.0,0.003]
[1645879271860,0.12750404,38950.0,38947.0,0.003]
[1645879272356,0.12779198,38950.0,38947.0,0.003]
[1645879272760,0.12779198,38950.0,38942.0,0.55]
[1645879273159,0.12750404,38950.0,38942.0,0.55]
[1645879273359,0.00028795,38948.0,38942.0,0.55]
[1645879273559,0.00028795,38948.0,38942.0,0.554]
[1645879274511,0.12750404,38950.0,38942.0,0.554]
[1645879274707,0.00028795,38947.0,38942.0,0.554]
[1645879274907,0.00028795,38947.0,38942.0,0.55]
[1645879275610,2.52740404,38950.0,38942.0,0.554]
[1645879275813,0.00028534,38946.0,38942.0,0.554]
[1645879276209,0.00028534,38946.0,38942.0,0.504]
[1645879276811,2.52740404,38950.0,38942.0,0.5]
[1645879277019,0.00028535,38946.0,38942.0,0.5]
[1645879277613,0.00028535,38946.0,38942.0,0.505]
[1645879278014,2.52740404,38950.0,38942.0,0.505]
[1645879278253,0.00028535,38946.0,38942.0,0.505]
[1645879278847,0.00028535,38946.0,38942.0,0.5]
[1645879279248,2.52698594,38950.0,38942.0,0.5]
[1645879279448,0.00027796,38946.0,38942.0,0.66334736]
[1645879279652,0.00027796,38946.0,38942.0,0.66834736]
[1645879280448,2.52698594,38950.0,38942.0,0.66834736]
[1645879280649,0.00027796,38946.0,38942.0,0.66834736]
[1645879280849,0.00027796,38946.0,38942.0,0.505]
[1645879281451,0.00027796,38946.0,38942.0,0.5]
[1645879281651,2.52698594,38950.0,38942.0,0.5]
[1645879281852,0.00027796,38946.0,38942.0,0.5]
[1645879282812,2.52698594,38950.0,38942.0,0.5]
[1645879283012,0.00017299,38946.0,38942.0,0.5]
[1645879283914,2.52698594,38950.0,38942.0,0.5]
[1645879284114,0.00017299,38946.0,38942.0,0.5]
[1645879285015,0.00017299,38946.0,38941.0,0.01806552]
[1645879285016,0.00017299,38946.0,38941.0,0.06806552]
[1645879285217,0.3,38949.0,38941.0,0.01806552]
[1645879285417,0.00017299,38946.0,38941.0,0.01806552]
[1645879285619,0.0514,38945.0,38941.0,0.01806552]
[1645879285852,0.3,38944.0,38941.0,0.01806552]
[1645879286051,0.19120916,38943.0,38941.0,0.01806552]
[1645879286654,0.0514,38943.0,38941.0,0.01806552]
[1645879293452,0.00029871,38945.0,38941.0,0.01806552]
[1645879293651,0.1766769,38946.0,38941.0,0.01806552]
[1645879293852,0.00029871,38945.0,38941.0,0.01806552]
[1645879294854,0.1766769,38946.0,38941.0,0.01806552]
[1645879295054,0.00029871,38945.0,38941.0,0.02106552]
[1645879296154,0.15905491,38948.0,38941.0,0.02106552]
[1645879296355,0.00029871,38945.0,38941.0,0.02106552]
[1645879296554,0.00029871,38945.0,38941.0,0.01806552]
[1645879297200,0.15905491,38948.0,38941.0,0.01806552]